[Event "Prague Festival-Masters 2022"]
[Site "Prague"]
[Date "2022.06.08"]
[Round "1.1"]
[White "Navara, David"]
[Black "Anton Guijarro, David"]
[Result "1-0"]
[ECO "D31"]
[WhiteElo "2682"]
[BlackElo "2691"]
[Annotator "TA"]
[PlyCount "99"]
[EventDate "2022.06.07"]
[EventType "tourn"]
[EventCountry "CZE"]
[SourceTitle "playchess.com"]
[Source "ChessBase"]
[SourceQuality "1"]
[TimeControl "40/5400+30:1800+30"]

{[%evp 16,99,0,0,0,0,14,18,17,17,112,31,106,118,105,3,9,0,84,88,79,0,0,0,0,0,0,-19,-25,-25,-28,-47,-25,-58,-9,-29,-15,-53,0,0,0,0,0,0,0,0,12,10,35,33,30,43,34,22,65,22,33,13,58,0,0,0,44,62,52,79,74,110,179,87,73,74,72,77,606,600,587,596,685,685,685,675,644,644,4133,4133]} 1. d4 {[%emt 0:00:01]} d5 {[%emt 0:00:17]} 2. c4 {[%emt 0:00:05]} e6 {[%emt 0:00:13]} 3. Nc3 {[%emt 0:00:09]} c6 {[%emt 0:00:34]} 4. e4 {[%emt 0:07:36]} dxe4 {[%emt 0:00:38]} 5. Nxe4 {[%emt 0:00:04]} Bb4+ {[%emt 0:00:13]} 6. Bd2 {[%emt 0:00:07]} Qxd4 {[%emt 0:00:17]} 7. Bxb4 {[%emt 0:00:07]} Qxe4+ {[%emt 0:00:07]} 8. Be2 {[%emt 0:00:21]} Na6 {[%emt 0:01:25]} 9. Bd6 {[%emt 0:05:02] And now Nf3 would win.} Qxg2 {[%emt 0:04:40] D31: Queen's Gambit Declined: Semi-Slav without ...Nf6 (+ Marshall Gambit and Noteboom) and Exchange Variation lines without ...Nf6.} 10. Qd2 {[%emt 0:00:27] [#]} Qe4 $146 {[%emt 0:01:12]} (10... Qxh1 $2 11. O-O-O Qe4 12. Be7 $1 $18 {[%mdl 512]}) ({Predecessor:} 10... e5 11. Bxe5 Bf5 12. Bf3 Qg6 13. O-O-O Nf6 14. Ne2 Bb1 15. Bxf6 gxf6 16. Qd7+ Kf8 17. Qd6+ Ke8 18. Nd4 f5 19. Rhe1+ Be4 20. Qe5+ {1-0 (20) Perez Ponsa,F (2554)-Fier,A (2564) Chess.com INT 2021}) 11. Nf3 {[%emt 0:07:45] Inhibits e5.} e5 $1 {[%emt 0:02:02] The position is equal.} 12. Rg1 {[%emt 0:08:28][%cal Bh1g1,Bg1g3,Bg3e3][%mdl 32]} g6 {[%emt 0:32:30]} (12... Bg4 $1 $11 13. Bxe5 (13. Nxe5 Qxe2+ 14. Qxe2 Bxe2 $17) 13... f6) 13. Ng5 {[%emt 0:14:24]} ({Don't play} 13. Bxe5 f6 14. Bc3 Bg4 $14) (13. Nxe5 $16 {Black must now prevent Rg3.} f6 14. O-O-O fxe5 15. Rg3 (15. Ba3 $2 Bf5 $19)) 13... Qf4 {[%emt 0:05:05]} (13... Qd4 $14) 14. Qxf4 $16 {[%emt 0:01:31]} exf4 {[%emt 0:00:06]} 15. Bxf4 {[%emt 0:16:49] White is much more active.} (15. O-O-O $1 $16 {Strongly threatening Rge1.} h6 16. Ne4) 15... Bf5 $11 {[%emt 0:09:38]} 16. Rg3 {[%emt 0:03:30]} h6 {[%emt 0:11:12]} (16... Ne7 $11 {remains equal.}) 17. Re3+ $16 {[%emt 0:01:31][%mdl 1024] White has strong compensation.} Kf8 {[%emt 0:00:11]} 18. Bd6+ {[%emt 0:01:30]} (18. Nf3 $16) 18... Kg7 $11 {[%emt 0:00:07]} 19. Nf3 {[%emt 0:01:48] Hoping for Nh4.} Nf6 {[%emt 0:03:36]} 20. Nd4 {[%emt 0:07:37]} Ne4 {[%emt 0:03:57]} 21. Nxf5+ {[%emt 0:01:02]} gxf5 {[%emt 0:00:06]} 22. Be5+ {[%emt 0:02:04] This bishop pair is nice.} f6 {[%emt 0:00:38]} 23. Bf4 {[%emt 0:00:07]} Rad8 {[%emt 0:05:28]} 24. f3 {[%emt 0:02:53]} Ng5 {[%emt 0:00:45]} (24... Nec5 $15 25. Kf1 Kf7) 25. Re7+ {[%emt 0:02:35]} Kg6 {[%emt 0:00:08]} 26. h4 {[%emt 0:13:06]} Rh7 {[%emt 0:08:49]} ({Black should play} 26... Nh3 $15 27. Bh2 Nb4) 27. Rxh7 {[%emt 0:00:31]} Nxh7 {[%emt 0:00:05]} 28. Kf2 {[%emt 0:00:16] Rg1+ is the strong threat.} Nf8 {[%emt 0:00:53]} 29. Rg1+ {[%emt 0:02:55]} Kh7 {[%emt 0:00:46]} 30. Be3 {[%emt 0:00:07]} Ne6 {[%emt 0:02:34]} 31. Bxa7 {[%emt 0:00:47]} Nb4 {[%emt 0:03:04]} ({Don't do} 31... Rd2 32. Ke3 Rxb2 33. Bd3 $16) 32. a3 {[%emt 0:00:40]} Nd3+ {[%emt 0:02:29]} 33. Bxd3 {[%emt 0:00:05]} Rxd3 {[%emt 0:00:04][%mdl 4096] Endgame KRB-KRN} 34. Re1 {[%emt 0:00:07]} Ng7 {[%emt 0:02:56]} 35. Re7 {[%emt 0:01:12]} (35. Ke2 $5 {[%cal Re2d3]} Rd7 36. Be3 $11) 35... Rd2+ $1 {[%emt 0:00:17]} 36. Re2 {[%emt 0:00:14]} Rd1 {[%emt 0:00:37]} 37. Re7 {[%emt 0:00:43]} Rd2+ {[%emt 0:00:10]} 38. Re2 {[%emt 0:00:06]} Rd1 {[%emt 0:00:06]} 39. b4 {[%emt 0:00:17]} Kg6 {[%emt 0:00:42]} 40. Re7 {[%emt 0:00:00]} Rd2+ {[%emt 0:00:00]} 41. Ke1 {[%emt 0:03:38]} Ra2 {[%emt 0:02:27]} (41... Rd3 $16 {was worth a try.}) 42. Rxb7 {[%emt 0:03:15]} (42. b5 $1 $18 {is more deadly.}) 42... Rxa3 $16 {[%emt 0:01:35]} 43. b5 {[%emt 0:00:46]} cxb5 {[%emt 0:01:02]} 44. cxb5 {[%emt 0:01:19][%cal Oh4h5,Bc4b5,Bb5b6,Bb6b7][%mdl 32]} f4 $2 {[%emt 0:18:06][%mdl 8192] This move loses the game for Black.} (44... Ne6 $16) 45. h5+ $18 {[%emt 0:12:27] White is clearly winning.} Nxh5 {[%emt 0:00:48]} 46. b6 $1 {[%emt 0:01:58]} Ra1+ {[%emt 0:07:50] [#]} 47. Kd2 $1 {[%emt 0:01:38]} Ng3 {[%emt 0:01:13] [#]} 48. Rc7 $1 {[%emt 0:00:43]} Nf1+ {[%emt 0:00:37]} 49. Kd3 {[%emt 0:01:04] Threatens to win with b7.} Ne3 {[%emt 0:01:11]} 50. b7 {[%emt 0:00:34] Weighted Error Value: White=0.16 (very precise) /Black=0.42} 1-0

[Event "Prague Festival-Masters 2022"]
[Site "Prague"]
[Date "2022.06.08"]
[Round "1.2"]
[White "Nguyen, Thai Dai Van"]
[Black "Maghsoodloo, Parham"]
[Result "1/2-1/2"]
[ECO "A34"]
[WhiteElo "2612"]
[BlackElo "2699"]
[Annotator "TA"]
[PlyCount "116"]
[EventDate "2022.06.07"]
[EventType "tourn"]
[EventCountry "CZE"]
[SourceTitle "playchess.com"]
[Source "ChessBase"]
[SourceQuality "1"]
[TimeControl "40/5400+30:1800+30"]

{[%evp 19,115,-22,12,0,0,0,0,-10,20,-49,-47,-31,-56,-56,-53,-67,-46,-62,-69,-65,-91,-66,-60,-89,-43,-71,-60,-78,-61,-91,-106,-95,-91,-88,-44,-108,-98,-150,-89,-191,-185,-197,-41,-41,-41,-41,-22,-22,-18,-19,0,-8,-12,-5,-6,-246,-246,-251,-252,-252,-166,-342,-251,-247,-190,-190,-190,-190,-190,-190,-139,-107,-93,-107,-8,-8,-8,-279,-279,-279,-8,-8,-8,-8,-8,-279,-8,-8,-8,-8,-8,-8,-8,-8,-8,-224,-8,-8]} 1. Nf3 {[%emt 0:00:08]} Nf6 {[%emt 0:01:09]} 2. c4 {[%emt 0:00:25]} c5 {[%emt 0:03:33]} 3. Nc3 {[%emt 0:00:50]} d5 {[%emt 0:00:09]} 4. cxd5 {[%emt 0:00:12]} Nxd5 {[%emt 0:00:07]} 5. g3 {[%emt 0:04:49]} Nc6 {[%emt 0:02:56]} 6. Bg2 {[%emt 0:00:11]} Nc7 {[%emt 0:00:57]} 7. O-O {[%emt 0:09:31]} e5 {[%emt 0:00:14]} 8. b3 {[%emt 0:00:07]} Be7 {[%emt 0:03:14]} 9. Bb2 {[%emt 0:00:10]} O-O {[%emt 0:11:35]} 10. Rc1 {[%emt 0:00:08]} f6 {[%emt 0:02:15]} 11. Nh4 {[%emt 0:06:33] [#] A34: Symmetrical English: 2 Nc3, lines with ...d5.} Qd7 $146 {[%emt 0:06:00]} ({Predecessor:} 11... Bd7 12. e3 Qc8 13. Nd5 Nxd5 14. Bxd5+ Be6 15. Bg2 Qd7 16. a3 Na5 17. Rc3 Rfd8 18. d3 Qb5 {0-1 (52) Stiemerling,A-Krefenstein,S (2094) Berlin 2014}) 12. e3 {[%emt 0:22:55]} Rb8 {[%emt 0:21:09]} 13. Qh5 {[%emt 0:20:31]} Rf7 {[%emt 0:03:56]} 14. Rfd1 {[%emt 0:00:51]} (14. Be4 f5 15. Bxc6 Qxc6 $17) (14. Ne4 $11) 14... g6 $1 $15 {[%emt 0:17:47]} 15. Qe2 {[%emt 0:01:27]} b6 $1 {[%emt 0:00:09]} 16. Nb5 {[%emt 0:15:32]} Ba6 {[%emt 0:01:03]} 17. a4 {[%emt 0:00:01]} Nb4 {[%emt 0:15:34][%cal Rc7b5]} 18. d4 {[%emt 0:03:40]} exd4 {[%emt 0:00:52]} (18... Bxb5 19. axb5 cxd4 20. exd4 $16) 19. exd4 {[%emt 0:00:47]} Nxb5 {[%emt 0:00:07]} 20. axb5 {[%emt 0:00:46]} Qxb5 {[%emt 0:02:33]} 21. Qd2 {[%emt 0:03:50]} Qe2 {[%emt 0:01:10]} (21... cxd4 $1 $17 22. Bxd4 Rd8) 22. Ra1 {[%emt 0:03:22]} cxd4 {[%emt 0:01:47]} 23. Bxd4 {[%emt 0:01:14]} Rd8 {[%emt 0:00:32]} 24. Qc3 {[%emt 0:00:49] Inhibits Bc5.} Rc8 {[%emt 0:01:48]} 25. Qd2 {[%emt 0:01:08]} Qxd2 {[%emt 0:01:28]} (25... Bf8 {seems wilder.} 26. Bh3 Qxd2 27. Rxd2 f5) 26. Rxd2 {[%emt 0:00:01]} Bb5 {[%emt 0:00:43]} 27. Rdd1 {[%emt 0:02:55]} (27. Nf3 $15) 27... Bf8 {[%emt 0:00:34]} (27... Nc2 {looks sharper.} 28. Rac1 Ba3 29. Bd5 Bxc1 30. Rxc1 Rd8) 28. Rac1 {[%emt 0:00:54]} (28. Nf3 $142) 28... Re8 {[%emt 0:00:29]} (28... Rd8 $142 29. Be3 Rxd1+ 30. Rxd1 Rd7) 29. Nf3 {[%emt 0:00:41]} (29. Be3 $17) 29... Be2 $1 $19 {[%emt 0:00:34]} 30. Rd2 {[%emt 0:00:07][%cal Of3e5]} Bxf3 {[%emt 0:00:33]} (30... Bh6 $19 31. Rxe2 Rxe2 32. Rc8+ Kg7) 31. Bxf3 $15 {[%emt 0:00:02]} Bh6 {[%emt 0:00:02]} 32. Re2 {[%emt 0:00:24]} Rd8 $36 {[%emt 0:00:58][%mdl 2048] Black is pushing.} 33. Rc4 {[%emt 0:00:39]} Bf8 {[%emt 0:00:01]} 34. Bc3 {[%emt 0:00:47] A strong pair of Bishops.} a5 {[%emt 0:00:31]} 35. Rd2 {[%emt 0:00:45]} Rfd7 {[%emt 0:00:51]} 36. Rxd7 {[%emt 0:00:06]} Rxd7 {[%emt 0:00:01]} 37. Bxf6 $2 {[%emt 0:01:11]} (37. Rc8 $11) 37... Rf7 $1 $19 {[%emt 0:00:19]} 38. Rxb4 {[%emt 0:00:26]} (38. Rf4 Bd6 39. Rxb4 Bxb4 $17) 38... Bxb4 {[%emt 0:00:04][%mdl 4096] Endgame KRB-KB} (38... Rxf6 39. Bd5+ Kg7 40. Rc4 $11) 39. Bd5 {[%emt 0:00:06]} b5 {[%emt 0:00:05][%cal Bb6b5,Bb5a4,Ba4a3][%mdl 32]} 40. Kf1 $2 {[%emt 0:00:00] [#]} (40. Bg5) 40... a4 $1 {[%emt 0:00:00]} 41. bxa4 {[%emt 0:00:59] [#]} bxa4 {[%emt 0:00:48][%cal Oa4a3] Threatens to win with ...a3!} 42. Bg5 {[%emt 0:15:28] [#]} a3 $1 {[%emt 0:05:55]} 43. Bh6 {[%emt 0:00:26] [#]} Bf8 $1 {[%emt 0:00:27]} 44. Bc1 {[%emt 0:01:05] [#]} Be7 {[%emt 0:11:30]} 45. Bh6 $17 {[%emt 0:02:17] [#]} g5 $1 {[%emt 0:02:28][%cal Oe7f8]} 46. h4 {[%emt 0:03:30] [#]} gxh4 {[%emt 0:00:45]} 47. Bc1 $11 {[%emt 0:02:40]} hxg3 {[%emt 0:12:16] Strongly threatening ...Kg7.} 48. Bxa3 $2 {[%emt 0:00:10][%mdl 8192]} Bxa3 $19 {[%emt 0:00:21]} 49. Kg2 {[%emt 0:00:08] [#]} Bd6 {[%emt 0:00:07]} 50. fxg3 {[%emt 0:00:07]} (50. Kf1 Bb8) 50... Kg7 {[%emt 0:00:06] ( -> ...Rc7)} 51. Bxf7 {[%emt 0:00:04]} Kxf7 $11 {[%emt 0:00:03] KB-KP} 52. g4 $2 {[%emt 0:00:29][%mdl 8192]} (52. Kg1 $11 {and White has nothing to worry.} Kg7 53. g4) 52... h6 $2 {[%emt 0:00:01]} ({Black should play} 52... Kf6 $19 {Hoping for ...Bc5.} 53. g5+ Kf5) 53. Kh1 {[%emt 0:00:05]} Kf6 {[%emt 0:00:05]} 54. Kg2 {[%emt 0:00:05]} Kg5 {[%emt 0:00:03]} 55. Kh1 {[%emt 0:00:03]} Kh4 {[%emt 0:00:05]} 56. Kg1 {[%emt 0:00:04]} Kg3 {[%emt 0:00:05]} 57. Kh1 {[%emt 0:00:03]} Bc5 $2 {[%emt 0:04:40]} ({And not} 57... Kxg4 58. Kg2 $11) ({Better is} 57... Ba3 $19 {And now ...Kf2 would win.} 58. Kg1 Kxg4) 58. g5 {[%emt 0:00:06]} hxg5 {[%emt 0:00:01] Weighted Error Value: White=0.44/Black=0.37} 1/2-1/2

[Event "Prague Festival-Masters 2022"]
[Site "Prague"]
[Date "2022.06.08"]
[Round "1.3"]
[White "Le, Quang Liem"]
[Black "Shankland, Sam"]
[Result "1-0"]
[ECO "D30"]
[WhiteElo "2709"]
[BlackElo "2718"]
[Annotator "TA"]
[PlyCount "83"]
[EventDate "2022.06.07"]
[EventType "tourn"]
[EventCountry "CZE"]
[SourceTitle "playchess.com"]
[Source "ChessBase"]
[SourceQuality "1"]
[TimeControl "40/5400+30:1800+30"]

{[%evp 9,83,0,0,0,6,10,12,0,7,0,30,13,37,3,13,10,14,-8,0,0,4,3,14,0,41,21,6,7,14,0,0,0,35,0,9,0,0,0,0,0,0,0,0,0,0,0,0,0,0,0,0,0,0,3,706,20,215,222,222,214,184,184,192,202,155,156,461,461,449,425,469,466,471,454,350,311]} 1. d4 {[%emt 0:00:04]} d5 {[%emt 0:00:13]} 2. c4 {[%emt 0:00:11]} e6 {[%emt 0:00:05]} 3. Nf3 {[%emt 0:01:15]} Nf6 {[%emt 0:00:06]} 4. Qc2 {[%emt 0:00:55]} c5 {[%emt 0:03:43]} 5. cxd5 {[%emt 0:00:20]} cxd4 {[%emt 0:03:31]} 6. Nxd4 {[%emt 0:03:50][%cal Od5e6] D30: Queen's Gambit Declined: Systems without Nc3.} Nxd5 {[%emt 0:03:57]} 7. a3 {[%emt 0:00:09] Inhibits Nb4.} Be7 {[%emt 0:05:01]} 8. e4 {[%emt 0:00:41] The position is equal.} Nf6 {[%emt 0:02:03] [#]} 9. Nf3 $146 {[%emt 0:05:04]} ({Predecessor:} 9. Nb5 Nc6 10. Be3 a6 11. N5c3 Ng4 12. Bf4 Bc5 13. Nd1 Ba7 14. f3 Nge5 15. Nd2 {0-1 (35) Pinto,C (2116)-Perez Gormaz,M (2327) Praia da Pipa 2014}) 9... Bd7 {[%emt 0:05:44]} 10. Nc3 {[%emt 0:04:30]} Bc6 {[%emt 0:04:34]} 11. b4 {[%emt 0:06:26]} a6 {[%emt 0:06:25]} 12. Bd3 {[%emt 0:05:02]} Nbd7 {[%emt 0:01:27]} 13. O-O {[%emt 0:00:11]} Rc8 {[%emt 0:01:57]} 14. Bb2 {[%emt 0:06:58]} b5 {[%emt 0:04:53]} 15. Rfd1 {[%emt 0:03:55]} Qc7 {[%emt 0:07:17]} 16. Rac1 {[%emt 0:03:54][%cal Oc3b5]} Bb7 {[%emt 0:08:40]} 17. a4 {[%emt 0:14:35]} (17. Qd2 $5 {[%cal Rc3b5]}) 17... O-O {[%emt 0:02:01]} 18. axb5 {[%emt 0:00:09]} axb5 {[%emt 0:00:06]} 19. Qe2 {[%emt 0:02:11]} Qb8 {[%emt 0:08:12]} 20. Bxb5 {[%emt 0:00:50]} Nb6 {[%emt 0:00:22]} 21. Bd3 {[%emt 0:05:55]} Bxb4 {[%emt 0:02:34]} 22. Nb5 {[%emt 0:00:12]} Nbd7 {[%emt 0:04:00]} 23. Rb1 {[%emt 0:01:09] [#] Threatens to win with Bxf6.} Bc5 {[%emt 0:01:11]} 24. h3 {[%emt 0:01:30]} Rfd8 {[%emt 0:04:42]} 25. Bc3 {[%emt 0:05:18]} Bb6 {[%emt 0:03:35]} 26. Bd4 {[%emt 0:03:05]} Bxd4 {[%emt 0:00:38]} 27. Nbxd4 {[%emt 0:00:30] e5 is the strong threat.} Nc5 {[%emt 0:02:08]} 28. e5 {[%emt 0:05:34]} Nfe4 {[%emt 0:00:20]} 29. Nc6 {[%emt 0:02:44]} Rxc6 {[%emt 0:04:32]} 30. Bxe4 {[%emt 0:00:09]} Nxe4 {[%emt 0:01:19]} 31. Rxb7 {[%emt 0:00:41]} Nc3 $2 {[%emt 0:04:22][%mdl 8192]} (31... Rxd1+ $11 32. Qxd1 Qf8) 32. Rxd8+ $2 {[%emt 0:00:46]} (32. Qd3 Nd5 33. Rxb8 Rxb8 34. Ng5) 32... Qxd8 $18 {[%emt 0:00:00] [#]} 33. Qd3 {[%emt 0:00:24][%cal Rd3d8][%mdl 512]} Rc8 {[%emt 0:03:31]} 34. Rd7 $40 {[%emt 0:00:18][%mdl 128] Black is in trouble.} Qb6 {[%emt 0:01:42]} 35. Ng5 {[%emt 0:04:05][%csl LRf7,LRh7]} Qb1+ {[%emt 0:00:33]} 36. Qxb1 {[%emt 0:00:02]} Nxb1 {[%emt 0:00:04]} 37. Nxf7 {[%emt 0:00:18] KRN-KRN} ({Not} 37. Rxf7 $2 h6 38. Re7 hxg5 $19) 37... Nd2 $2 {[%emt 0:01:08]} (37... Rc1+ $16 {is a better chance.} 38. Kh2 Nd2) 38. Rd8+ {[%emt 0:01:20]} Rxd8 {[%emt 0:00:01]} 39. Nxd8 {[%emt 0:00:01]} g5 {[%emt 0:00:27]} 40. Nxe6 {[%emt 0:15:19]} h6 41. Nd4 {[%emt 0:00:00]} Nc4 {[%emt 0:02:57]} 42. Nf5 {[%emt 0:00:00] Weighted Error Value: White=0.17 (very precise) /Black=0.15 (very precise)} 1-0

[Event "Prague Festival-Masters 2022"]
[Site "Prague"]
[Date "2022.06.08"]
[Round "1.4"]
[White "Salem, A.R. Saleh"]
[Black "Vallejo Pons, Francisco"]
[Result "1/2-1/2"]
[ECO "B12"]
[WhiteElo "2690"]
[BlackElo "2704"]
[Annotator "TA"]
[PlyCount "118"]
[EventDate "2022.06.07"]
[EventType "tourn"]
[EventCountry "CZE"]
[SourceTitle "playchess.com"]
[Source "ChessBase"]
[SourceQuality "1"]
[TimeControl "40/5400+30:1800+30"]

{[%evp 9,118,0,0,-29,-35,-39,-16,-38,-18,-33,0,-46,-8,-70,-15,-48,-43,-46,-51,-146,-130,-151,-136,-144,-136,-148,-146,-137,-122,-147,-154,-142,-160,-153,-145,-156,-164,-329,-302,-321,-319,-297,-188,-170,-181,-203,-213,-258,-256,-315,-328,-433,-429,-405,-424,-431,-437,-390,-428,-736,-683,-666,-293,-293,-267,-268,-95,-95,-94,-94,-94,-97,-91,-187,-187,-193,-53,-43,-20,-16,-20,-20,-16,-16,-16,-16,-16,-63,-58,-60,-58,-60,-60,-66,-43,-43,-31,-43,-8,-8,-8,-8,-8,-8,0,0,0,0,0,0,0]} 1. e4 {[%emt 0:00:04]} c6 {[%emt 0:00:10]} 2. d4 {[%emt 0:00:05]} d5 {[%emt 0:00:04]} 3. e5 {[%emt 0:00:04]} c5 {[%emt 0:00:05]} 4. dxc5 {[%emt 0:01:33]} e6 {[%emt 0:00:07]} 5. c3 {[%emt 0:01:03]} Nc6 {[%emt 0:06:09]} 6. Bf4 {[%emt 0:12:00] B12: Caro-Kann: Advance Variation.} Bxc5 {[%emt 0:04:31]} 7. b4 {[%emt 0:00:33] [#]} Be7 $146 {[%emt 0:23:37]} (7... Qh4 $2 8. g3 Qe7 9. bxc5 $18) ({Predecessor:} 7... Bb6 8. Nf3 f6 9. Bd3 fxe5 10. Nxe5 Qf6 11. Qh5+ g6 12. Nxg6 hxg6 13. Qxg6+ Qxg6 14. Bxg6+ {0-1 (20) Burchert,W (2103)-Landa,K (2601) Bad Wiessee 2016}) 8. Bd3 {[%emt 0:02:16]} g5 {[%emt 0:07:30]} 9. Bg3 {[%emt 0:00:39]} h5 {[%emt 0:00:45]} 10. h3 {[%emt 0:00:23]} (10. h4 $1 $11) 10... Qc7 {[%emt 0:03:19]} 11. Nf3 {[%emt 0:03:03]} (11. Qe2 $1 $11) 11... Nh6 {[%emt 0:01:58]} (11... a6 $1 $15) 12. b5 $11 {[%emt 0:09:55]} Na5 {[%emt 0:02:02]} 13. Nd4 {[%emt 0:03:46]} Nf5 {[%emt 0:05:07]} 14. Bh2 {[%emt 0:18:35]} (14. Bxf5 $15 exf5 15. f4) 14... Nxd4 $17 {[%emt 0:03:51]} 15. cxd4 {[%emt 0:00:31] [#]} Qb6 $1 {[%emt 0:02:07]} 16. Be2 {[%emt 0:05:39]} (16. Qa4 $2 Nc4 17. Bxc4 Qxd4 18. b6+ Bd7 $19) 16... Bb4+ {[%emt 0:00:40]} 17. Kf1 {[%emt 0:00:05]} Bd7 {[%emt 0:01:08]} 18. a3 {[%emt 0:02:02]} Be7 {[%emt 0:03:12] White must now prevent ...Rc8.} 19. a4 {[%emt 0:08:04]} Rc8 {[%emt 0:02:17][%cal Oa5b3]} 20. g3 {[%emt 0:08:28]} a6 {[%emt 0:02:22][%cal Ra6b5]} 21. Kg2 {[%emt 0:01:45]} axb5 {[%emt 0:01:13]} 22. axb5 {[%emt 0:00:12]} Bxb5 {[%emt 0:01:13]} 23. Bxh5 $2 {[%emt 0:06:12] [#]} (23. Bxb5+ Qxb5 24. Nd2) 23... Nb3 $1 $19 {[%emt 0:05:07][%mdl 512]} 24. Ra2 {[%emt 0:01:29]} Nxd4 {[%emt 0:03:59]} 25. Nd2 {[%emt 0:04:25]} Nc6 {[%emt 0:04:38]} 26. Be2 {[%emt 0:02:48]} Nb4 $36 {[%emt 0:00:21][%mdl 2048] White is under strong pressure.} ({Don't play} 26... Nxe5 27. Qb3 $16) 27. Rb2 {[%emt 0:00:42]} Bc6 {[%emt 0:02:39]} 28. Qb1 {[%emt 0:00:34]} d4+ {[%emt 0:02:39][%cal Bd5d4,Bd4d3][%mdl 32]} 29. Bf3 {[%emt 0:00:04]} d3 {[%emt 0:02:23]} 30. g4 {[%emt 0:04:18]} Bxf3+ {[%emt 0:04:42]} 31. Nxf3 {[%emt 0:00:02]} Rc2 {[%emt 0:00:38][%csl Gc2][%cal Rb6f2]} 32. Bg3 {[%emt 0:00:16]} O-O {[%emt 0:03:34]} 33. h4 {[%emt 0:00:03]} gxh4 {[%emt 0:00:46]} 34. Nxh4 {[%emt 0:00:10]} (34. Rxh4 $142 Rxb2 35. Qxb2 Bxh4 36. Bxh4) 34... Qc6+ {[%emt 0:01:56]} 35. Nf3 {[%emt 0:00:06]} Nd5 {[%emt 0:00:27]} (35... f6 $142 36. Rxc2 dxc2) 36. Rxc2 {[%emt 0:01:38]} Qxc2 {[%emt 0:00:03]} (36... dxc2 37. Qc1 Nf4+ 38. Qxf4 $18) 37. Qe1 {[%emt 0:02:04] Threatens to win with Qe4.} Rc8 $2 {[%emt 0:00:51]} (37... Qc4 $19 {and Black stays clearly on top.} 38. g5 Qg4) 38. Qe4 $17 {[%emt 0:00:12] Intending Qh7+ and mate.} d2 {[%emt 0:00:09]} 39. Nxd2 {[%emt 0:00:01]} b5 {[%emt 0:00:53]} 40. Qxc2 {[%emt 0:00:00]} Rxc2 {[%emt 0:00:00]} 41. Nb3 {[%emt 0:11:42] [#]} (41. Ne4 $17) 41... Rb2 $1 $19 {[%emt 0:06:10]} 42. Na5 {[%emt 0:04:07]} Rb4 {[%emt 0:03:48]} ({Better is} 42... b4 $19 {And now ...b3 would win.} 43. Nc6 Bc5) 43. Nc6 $1 $15 {[%emt 0:03:53]} Rxg4 {[%emt 0:02:13]} (43... Rc4 $5 {[%cal Rc4c6]} 44. Nxe7+ Nxe7 $15) 44. f4 {[%emt 0:00:03] Inhibits Bg5.} f5 {[%emt 0:10:01]} ({Don't take} 44... Nxf4+ 45. Kf3 Rxg3+ 46. Kxf4 $16 (46. Kxg3 Nd5 $14)) 45. exf6 $1 {[%emt 0:01:27]} Bxf6 {[%emt 0:00:12]} 46. Kf3 {[%emt 0:01:14]} Rg7 {[%emt 0:00:25] ...Rc7 is the strong threat.} 47. Re1 {[%emt 0:00:30]} b4 {[%emt 0:02:08] Strongly threatening ...b3.} 48. Nxb4 {[%emt 0:01:04]} Nxb4 {[%emt 0:00:47]} 49. Rxe6 {[%emt 0:00:02]} Rf7 {[%emt 0:04:55]} 50. Ke4 {[%emt 0:00:36]} Bg7 {[%emt 0:01:29]} 51. f5 {[%emt 0:00:54]} Na2 {[%emt 0:01:58]} 52. Be5 {[%emt 0:00:15]} Nc3+ {[%emt 0:00:27]} 53. Kd4 {[%emt 0:00:41]} Nb5+ {[%emt 0:00:39]} 54. Ke4 {[%emt 0:00:31] The position is equal.} Nc7 {[%emt 0:01:55]} 55. Rg6 {[%emt 0:00:07]} Ne8 {[%emt 0:00:22]} 56. Bxg7 {[%emt 0:00:06]} Nxg7 {[%emt 0:00:13]} 57. f6 {[%emt 0:00:04][%mdl 64] Pin} Kh7 {[%emt 0:00:04]} 58. Rxg7+ {[%emt 0:00:04]} Rxg7 {[%emt 0:00:03]} 59. fxg7 {[%emt 0:00:06]} Kxg7 {[%emt 0:02:59] And White is the lucky defender.  Weighted Error Value: White=0.19 (very precise) /Black=0.21 (precise)} 1/2-1/2